fUSD/lending_fUSD_20250930
["ID","MTS","AMOUNT","RATE_DAILY","PERIOD"]
[388544685,1759236776373,-3746.29,0.00020821,2]
[388544686,1759236776383,-504.68658169,0.00020821,2]
[388544687,1759236776394,-1228.07,0.00020821,2]
[388544688,1759236776403,-500.0,0.00020821,2]
[388544689,1759236776413,-484.43766096,0.00020821,2]
[388544690,1759236776423,-6793.84,0.00020821,2]
[388544691,1759236776433,-771.21,0.00020821,2]
[388544692,1759236776443,-2023.02,0.00020821,2]
[388544693,1759236776452,-3994.63,0.00020821,2]
[388544694,1759236776462,-1848.51,0.00020821,2]
[388544695,1759236776472,-508.54,0.00020821,2]
[388544696,1759236776482,-7114.54,0.00020821,2]
[388544697,1759236776492,-813.64,0.00020821,2]
[388544698,1759236776502,-500.0,0.00020821,2]
[388544699,1759236776512,-7172.54,0.00020821,2]
[388544700,1759236776523,-3815.16,0.00020821,2]
[388544701,1759236776532,-1303.96,0.00020821,2]
[388544702,1759236776542,-527.56,0.00020821,2]
[388544703,1759236776552,-527.07,0.00020821,2]
[388544704,1759236776562,-1399.73,0.00020821,2]
[388544705,1759236776572,-500.0,0.00020821,2]
[388544706,1759236776583,-2619.03,0.00020821,2]
[388544707,1759236776593,-2913.4,0.00020821,2]
[388544708,1759236776603,-21774.44,0.00020821,2]
[388544709,1759236776613,-500.0,0.00020821,2]
[388544710,1759236776622,-2968.61,0.00020821,2]
[388544711,1759236776632,-500.0,0.00020821,2]
[388544712,1759236776642,-1918.13,0.00020821,2]
[388544713,1759236776652,-1472.51,0.00020821,2]
[388544714,1759236776661,-500.0,0.00020821,2]
[388544715,1759236776671,-4650.74,0.00020821,2]
[388544716,1759236776681,-500.0,0.00020821,2]
[388544717,1759236776691,-2147.86,0.00020821,2]
[388544718,1759236776701,-1174.34,0.00020821,2]
[388544719,1759236776710,-19565.78,0.00020821,2]
[388544720,1759236776720,-1497.08,0.00020821,2]
[388544721,1759236776730,-500.0,0.00020821,2]
[388544722,1759236776739,-3388.02,0.00020821,2]
[388544723,1759236776749,-4713.09,0.00020821,2]
[388544724,1759236776759,-2799.17,0.00020821,2]
[388544725,1759236776770,-2233.98,0.00020821,2]
[388544726,1759236776780,-1348.57,0.00020821,2]
[388544727,1759236776789,-1023.1,0.00020821,2]
[388544728,1759236776799,-1643.92,0.00020821,2]
[388544729,1759236776808,-1425.3,0.00020821,2]
[388544730,1759236776817,-1836.14,0.00020821,2]
[388544731,1759236776827,-4011.93,0.00020821,2]
[388544732,1759236776836,-500.0,0.00020821,2]
[388544733,1759236776846,-1122.49,0.00020821,2]
[388544734,1759236776856,-3165.44,0.00020821,2]
[388544735,1759236776871,-500.0,0.00020821,2]
[388544736,1759236776880,-636.3,0.00020821,2]
[388544737,1759236776890,-1351.71,0.00020821,2]
[388544738,1759236776901,-500.0,0.00020821,2]
[388544739,1759236776911,-513.89566158,0.00020821,2]
[388544740,1759236776921,-4883.0,0.00020821,2]
[388544741,1759236776930,-4753.48,0.00020821,2]
[388544742,1759236776943,-934.85,0.00020821,2]
[388544743,1759236776953,-500.0,0.00020821,2]
[388544744,1759236776963,-12816.21,0.00020821,2]
[388544745,1759236776972,-1515.69,0.00020821,2]
[388544746,1759236776982,-4248.48,0.00020821,2]
[388544747,1759236776992,-1085.56,0.00020821,2]
[388544748,1759236777002,-3443.7,0.00020821,2]
[388544749,1759236777012,-10208.2,0.00020821,2]
[388544750,1759236777021,-500.0,0.00020821,2]
[388544751,1759236777030,-500.0,0.00020821,2]
[388544752,1759236777040,-617.19638511,0.00020821,2]
[388544753,1759236777049,-560.67,0.00020821,2]
[388544754,1759236777058,-18773.04,0.00020821,2]
[388544755,1759236777068,-821.31,0.00020821,2]
[388544756,1759236777077,-961.69,0.00020821,2]
[388544757,1759236777087,-500.0,0.00020821,2]
[388544758,1759236777096,-666.51,0.00020821,2]
[388544759,1759236777106,-1029.44,0.00020821,2]
[388544760,1759236777117,-2759.4,0.00020821,2]
[388544761,1759236777126,-6876.3,0.00020821,2]
[388544762,1759236777136,-1050.1,0.00020821,2]
[388544763,1759236777145,-3187.48,0.00020821,2]
[388544764,1759236777155,-275.07691673,0.00020821,2]
[388544765,1759236777164,-1729.31,0.00020821,2]
[388544766,1759236777174,-1339.37,0.00020821,2]
[388544767,1759236777183,-1344.1,0.00020821,2]
[388544768,1759236777193,-797.07,0.00020821,2]
[388544769,1759236777202,-6717.68,0.00020821,2]
[388544770,1759236777212,-500.0,0.00020821,2]
[388544771,1759236777221,-3703.76,0.00020821,2]
[388544772,1759236777231,-3484.89,0.00020821,2]
[388544773,1759236777241,-1238.43,0.00020821,2]
[388544774,1759236777250,-3586.23,0.00020821,2]
[388544775,1759236777259,-4706.84,0.00020821,2]
[388544776,1759236777268,-1514.61,0.00020821,2]
[388544777,1759236777278,-500.0,0.00020821,2]
[388544778,1759236777287,-5732.57,0.00020821,2]
[388544779,1759236777297,-212706.38596121,0.00020821,2]
[388544781,1759236777306,-150.0,0.00020822,2]
[388544782,1759236777315,-485.0,0.00020822,2]
[388544783,1759236777324,-150.0,0.00020822,2]
[388544784,1759236777333,-500.0,0.00020822,2]
[388544785,1759236777342,-500.0,0.00020822,2]
[388544786,1759236777352,-150.0,0.00020822,2]
[388544787,1759236777361,-150.0,0.00020822,2]
[388544788,1759236777370,-167.83393696,0.00020822,2]
[388544789,1759236777380,-500.0,0.00020822,2]
[388544790,1759236777389,-500.0,0.00020822,2]
[388544791,1759236777398,-494.0,0.00020822,2]
[388544792,1759236777408,-150.0,0.00020822,2]
[388544793,1759236777418,-1178.0,0.00020822,2]
[388544794,1759236777427,-250.0,0.00020822,2]
[388544795,1759236777437,-426.0,0.00020822,2]
[388544796,1759236777446,-500.0,0.00020822,2]
[388544797,1759236777455,-500.0,0.00020822,2]
[388544798,1759236777464,-218.86850647,0.00020822,2]
[388544799,1759236777474,-168.3888056,0.00020822,2]
[388544800,1759236777483,-400.0,0.00020848,2]
[388544801,1759236777492,-77473.42632938,0.0002085,2]
[388544802,1759236777501,-500.0,0.0002085,2]
[388544803,1759236777510,-500.0,0.0002085,2]
[388544804,1759236777520,-500.0,0.0002085,2]
[388544805,1759236777529,-500.0,0.0002085,2]
[388544806,1759236777538,-500.0,0.0002085,2]
[388544807,1759236777548,-500.0,0.0002085,2]
[388544808,1759236777557,-500.0,0.0002085,2]
[388544809,1759236777566,-500.0,0.0002085,2]
[388544810,1759236777575,-500.0,0.0002085,2]
[388544811,1759236777584,-500.0,0.0002085,2]
[388544812,1759236777594,-500.0,0.0002085,2]
[388544813,1759236777603,-500.0,0.0002085,2]
[388544814,1759236777612,-500.0,0.0002085,2]
[388544815,1759236777622,-500.0,0.0002085,2]
[388544816,1759236777631,-500.0,0.0002085,2]
[388544817,1759236777640,-500.0,0.0002085,2]
[388544818,1759236777650,-500.0,0.0002085,2]
[388544819,1759236777659,-500.0,0.0002085,2]
[388544820,1759236777668,-500.0,0.0002085,2]
[388544821,1759236777677,-962.0,0.0002085,2]
[388544822,1759236777687,-500.0,0.0002085,2]
[388544823,1759236777696,-500.0,0.0002085,2]
[388544824,1759236777706,-500.0,0.0002085,2]
[388544825,1759236777715,-500.0,0.0002085,2]
[388544826,1759236777725,-500.0,0.0002085,2]
[388544827,1759236777735,-500.0,0.0002085,2]
[388544828,1759236777744,-500.0,0.0002085,2]
[388544829,1759236777754,-500.0,0.0002085,2]
[388544830,1759236777764,-500.0,0.0002085,2]
[388544831,1759236777774,-500.0,0.0002085,2]
[388544832,1759236777783,-500.0,0.0002085,2]
[388544833,1759236777793,-500.0,0.0002085,2]
[388544834,1759236777803,-500.0,0.0002085,2]
[388544835,1759236777811,-500.0,0.0002085,2]
[388544836,1759236777821,-500.0,0.0002085,2]
[388544837,1759236777832,-500.0,0.0002085,2]
[388544838,1759236777842,-500.0,0.0002085,2]
[388544839,1759236777853,-500.0,0.0002085,2]
[388544840,1759236777867,-500.0,0.0002085,2]
[388544841,1759236777878,-500.0,0.0002085,2]
[388544842,1759236777888,-500.0,0.0002085,2]
[388544843,1759236778087,-500.0,0.0002085,2]
[388544844,1759236778097,-500.0,0.0002085,2]
[388544845,1759236778107,-500.0,0.0002085,2]
[388544846,1759236778116,-500.0,0.0002085,2]
[388544847,1759236778125,-500.0,0.0002085,2]
[388544848,1759236778134,-500.0,0.0002085,2]
[388544849,1759236778143,-500.0,0.0002085,2]
[388544850,1759236778153,-500.0,0.0002085,2]
[388544851,1759236778162,-500.0,0.0002085,2]
[388544852,1759236778171,-500.0,0.0002085,2]
[388544853,1759236778181,-500.0,0.0002085,2]
[388544854,1759236778190,-500.0,0.0002085,2]
[388544855,1759236778199,-500.0,0.0002085,2]
[388544856,1759236778209,-500.0,0.0002085,2]
[388544857,1759236778218,-500.0,0.0002085,2]
[388544858,1759236778228,-500.0,0.0002085,2]
[388544859,1759236778237,-500.0,0.0002085,2]
[388544860,1759236778246,-500.0,0.0002085,2]
[388544861,1759236778256,-500.0,0.0002085,2]
[388544862,1759236778265,-500.0,0.0002085,2]
[388544863,1759236778274,-500.0,0.0002085,2]
[388544864,1759236778283,-500.0,0.0002085,2]
[388544865,1759236778292,-500.0,0.0002085,2]
[388544866,1759236778301,-500.0,0.0002085,2]
[388544867,1759236778311,-500.0,0.0002085,2]
[388544868,1759236778320,-500.0,0.0002085,2]
[388544869,1759236778330,-500.0,0.0002085,2]
[388544870,1759236778340,-500.0,0.0002085,2]
[388544871,1759236778349,-500.0,0.0002085,2]
[388544872,1759236778359,-500.0,0.0002085,2]
[388544873,1759236778368,-500.0,0.0002085,2]
[388544874,1759236778378,-500.0,0.0002085,2]
[388544875,1759236778387,-500.0,0.0002085,2]
[388544876,1759236778397,-500.0,0.0002085,2]
[388544877,1759236778407,-500.0,0.0002085,2]
[388544878,1759236778416,-500.0,0.0002085,2]
[388544879,1759236778425,-500.0,0.0002085,2]
[388544880,1759236778435,-500.0,0.0002085,2]
[388544881,1759236778444,-500.0,0.0002085,2]
[388544882,1759236778453,-500.0,0.0002085,2]
[388544883,1759236778465,-500.0,0.0002085,2]
[388544884,1759236778474,-500.0,0.0002085,2]
[388544885,1759236778487,-500.0,0.0002085,2]
[388544886,1759236778497,-500.0,0.0002085,2]
[388544887,1759236778507,-500.0,0.0002085,2]
[388544888,1759236778516,-500.0,0.0002085,2]
[388544889,1759236778525,-500.0,0.0002085,2]
[388544890,1759236778535,-500.0,0.0002085,2]
[388544891,1759236778544,-500.0,0.0002085,2]
[388544892,1759236778553,-500.0,0.0002085,2]
[388544893,1759236778562,-500.0,0.0002085,2]
[388544894,1759236778572,-500.0,0.0002085,2]
[388544895,1759236778582,-500.0,0.0002085,2]
[388544896,1759236778591,-500.0,0.0002085,2]
[388544897,1759236778600,-500.0,0.0002085,2]
[388544898,1759236778609,-500.0,0.0002085,2]
[388544899,1759236778618,-500.0,0.0002085,2]
[388544900,1759236778627,-500.0,0.0002085,2]
[388544901,1759236778637,-500.0,0.0002085,2]
[388544902,1759236778646,-500.0,0.0002085,2]
[388544903,1759236778655,-500.0,0.0002085,2]
[388544904,1759236778664,-500.0,0.0002085,2]
[388544905,1759236778674,-500.0,0.0002085,2]
[388544906,1759236778683,-500.0,0.0002085,2]
[388544907,1759236778692,-500.0,0.0002085,2]
[388544908,1759236778701,-500.0,0.0002085,2]
[388544909,1759236778710,-500.0,0.0002085,2]
[388544910,1759236778720,-500.0,0.0002085,2]
[388544911,1759236778729,-500.0,0.0002085,2]
[388544912,1759236778738,-500.0,0.0002085,2]
[388544913,1759236778747,-500.0,0.0002085,2]
[388544914,1759236778757,-500.0,0.0002085,2]
[388544915,1759236778767,-500.0,0.0002085,2]
[388544916,1759236778776,-500.0,0.0002085,2]
[388544917,1759236778785,-500.0,0.0002085,2]
[388544918,1759236778795,-500.0,0.0002085,2]
[388544919,1759236778804,-500.0,0.0002085,2]
[388544920,1759236778814,-500.0,0.0002085,2]
[388544921,1759236778823,-500.0,0.0002085,2]
[388544922,1759236778833,-500.0,0.0002085,2]
[388544923,1759236778842,-500.0,0.0002085,2]
[388544924,1759236778852,-500.0,0.0002085,2]
[388544925,1759236778864,-500.0,0.0002085,2]
[388544926,1759236778874,-500.0,0.0002085,2]
[388544927,1759236778885,-500.0,0.0002085,2]
[388544928,1759236778895,-500.0,0.0002085,2]
[388544929,1759236778906,-500.0,0.0002085,2]
[388544930,1759236778915,-500.0,0.0002085,2]
[388544931,1759236778925,-500.0,0.0002085,2]
[388544932,1759236778936,-500.0,0.0002085,2]
[388544933,1759236778946,-500.0,0.0002085,2]
[388544934,1759236778955,-500.0,0.0002085,2]
[388544935,1759236778964,-500.0,0.0002085,2]
[388544936,1759236778974,-500.0,0.0002085,2]
[388544937,1759236778984,-500.0,0.0002085,2]
[388544938,1759236778994,-500.0,0.0002085,2]
[388544939,1759236779003,-500.0,0.0002085,2]
[388544940,1759236779013,-500.0,0.0002085,2]
[388544941,1759236779023,-500.0,0.0002085,2]
[388544942,1759236779033,-500.0,0.0002085,2]
[388544943,1759236779043,-500.0,0.0002085,2]
[388544944,1759236779052,-500.0,0.0002085,2]
[388544945,1759236779062,-500.0,0.0002085,2]
[388544946,1759236779072,-500.0,0.0002085,2]
[388544947,1759236779081,-500.0,0.0002085,2]
[388544948,1759236779091,-500.0,0.0002085,2]
[388544949,1759236779100,-500.0,0.0002085,2]
[388544950,1759236779110,-500.0,0.0002085,2]
[388544951,1759236779120,-500.0,0.0002085,2]
[388544952,1759236779130,-500.0,0.0002085,2]
[388544953,1759236779141,-500.0,0.0002085,2]
[388544954,1759236779150,-500.0,0.0002085,2]
[388544955,1759236779160,-500.0,0.0002085,2]
[388544956,1759236779171,-500.0,0.0002085,2]
[388544957,1759236779180,-500.0,0.0002085,2]
[388544958,1759236779190,-500.0,0.0002085,2]
[388544959,1759236779200,-500.0,0.0002085,2]
[388544960,1759236779209,-500.0,0.0002085,2]
[388544961,1759236779219,-500.0,0.0002085,2]
[388544962,1759236779228,-500.0,0.0002085,2]
[388544963,1759236779239,-500.0,0.0002085,2]
[388544964,1759236779254,-500.0,0.0002085,2]
[388544965,1759236779271,-500.0,0.0002085,2]
[388544966,1759236779281,-500.0,0.0002085,2]
[388544967,1759236779291,-500.0,0.0002085,2]
[388544968,1759236779301,-500.0,0.0002085,2]
[388544969,1759236779311,-500.0,0.0002085,2]
[388544970,1759236779321,-500.0,0.0002085,2]
[388544971,1759236779330,-500.0,0.0002085,2]
[388544972,1759236779339,-500.0,0.0002085,2]
[388544973,1759236779348,-500.0,0.0002085,2]
[388544974,1759236779358,-500.0,0.0002085,2]
[388544975,1759236779368,-500.0,0.0002085,2]
[388544976,1759236779377,-500.0,0.0002085,2]
[388544977,1759236779387,-500.0,0.0002085,2]
[388544978,1759236779397,-500.0,0.0002085,2]
[388544979,1759236779407,-500.0,0.0002085,2]
[388544980,1759236779416,-500.0,0.0002085,2]
[388544981,1759236779425,-500.0,0.0002085,2]
[388544982,1759236779434,-500.0,0.0002085,2]
[388544983,1759236779444,-500.0,0.0002085,2]
[388544984,1759236779453,-500.0,0.0002085,2]
[388544985,1759236779462,-500.0,0.0002085,2]
[388544986,1759236779471,-500.0,0.0002085,2]
[388544987,1759236779481,-500.0,0.0002085,2]
[388544988,1759236779490,-500.0,0.0002085,2]
[388544989,1759236779500,-500.0,0.0002085,2]
[388544990,1759236779509,-500.0,0.0002085,2]
[388544991,1759236779520,-500.0,0.0002085,2]
[388544992,1759236779529,-500.0,0.0002085,2]
[388544993,1759236779539,-933.0,0.0002085,2]
[388544994,1759236779550,-500.0,0.0002085,2]
[388544995,1759236779559,-500.0,0.0002085,2]
[388544996,1759236779570,-500.0,0.0002085,2]
[388544997,1759236779581,-500.0,0.0002085,2]
[388544998,1759236779592,-500.0,0.0002085,2]
[388544999,1759236779603,-500.0,0.0002085,2]
[388545000,1759236779613,-500.0,0.0002085,2]
[388545001,1759236779624,-500.0,0.0002085,2]
[388545002,1759236779636,-500.0,0.0002085,2]
[388545003,1759236779646,-500.0,0.0002085,2]
[388545004,1759236779656,-500.0,0.0002085,2]
[388545005,1759236779667,-500.0,0.0002085,2]
[388545006,1759236779676,-500.0,0.0002085,2]
[388545007,1759236779687,-500.0,0.0002085,2]
[388545008,1759236779698,-500.0,0.0002085,2]
[388545009,1759236779708,-500.0,0.0002085,2]
[388545010,1759236779718,-500.0,0.0002085,2]
[388545011,1759236779729,-500.0,0.0002085,2]
[388545012,1759236779740,-500.0,0.0002085,2]
[388545013,1759236779751,-500.0,0.0002085,2]
[388545014,1759236779761,-500.0,0.0002085,2]
[388545015,1759236779772,-500.0,0.0002085,2]
[388545016,1759236779781,-500.0,0.0002085,2]
[388545017,1759236779790,-500.0,0.0002085,2]
[388545018,1759236779799,-500.0,0.0002085,2]
[388545019,1759236779810,-500.0,0.0002085,2]
[388545020,1759236779819,-973.0,0.0002085,2]
[388545021,1759236779828,-500.0,0.0002085,2]
[388545022,1759236779838,-500.0,0.0002085,2]
[388545023,1759236779847,-500.0,0.0002085,2]
[388545024,1759236779858,-500.0,0.0002085,2]
[388545025,1759236779870,-500.0,0.0002085,2]
[388545026,1759236779879,-500.0,0.0002085,2]
[388545027,1759236779889,-500.0,0.0002085,2]
[388545028,1759236779898,-500.0,0.0002085,2]
[388545029,1759236779909,-500.0,0.0002085,2]
[388545030,1759236779919,-500.0,0.0002085,2]
[388545031,1759236779928,-500.0,0.0002085,2]
[388545032,1759236779940,-500.0,0.0002085,2]
[388545033,1759236779950,-500.0,0.0002085,2]
[388545034,1759236779959,-500.0,0.0002085,2]
[388545035,1759236779969,-500.0,0.0002085,2]
[388545036,1759236779978,-500.0,0.0002085,2]
[388545037,1759236779988,-500.0,0.0002085,2]
[388545038,1759236779997,-500.0,0.0002085,2]
[388545039,1759236780007,-500.0,0.0002085,2]
[388545040,1759236780016,-500.0,0.0002085,2]
[388545041,1759236780030,-500.0,0.0002085,2]
[388545042,1759236780039,-500.0,0.0002085,2]
[388545043,1759236780050,-500.0,0.0002085,2]
[388545044,1759236780060,-500.0,0.0002085,2]
[388545045,1759236780070,-500.0,0.0002085,2]
[388545046,1759236780079,-500.0,0.0002085,2]
[388545047,1759236780088,-500.0,0.0002085,2]
[388545048,1759236780098,-500.0,0.0002085,2]
[388545049,1759236780107,-500.0,0.0002085,2]
[388545050,1759236780117,-500.0,0.0002085,2]
[388545051,1759236780127,-500.0,0.0002085,2]
[388545052,1759236780138,-500.0,0.0002085,2]
[388545053,1759236780148,-500.0,0.0002085,2]
[388545054,1759236780158,-500.0,0.0002085,2]
[388545055,1759236780167,-500.0,0.0002085,2]
[388545056,1759236780178,-500.0,0.0002085,2]
[388545057,1759236780189,-500.0,0.0002085,2]
[388545058,1759236780199,-500.0,0.0002085,2]
[388545059,1759236780210,-500.0,0.0002085,2]
[388545060,1759236780220,-500.0,0.0002085,2]
[388545061,1759236780231,-500.0,0.0002085,2]
[388545062,1759236780240,-500.0,0.0002085,2]
[388545063,1759236780250,-500.0,0.0002085,2]
[388545064,1759236780259,-500.0,0.0002085,2]
[388545065,1759236780270,-500.0,0.0002085,2]
[388545066,1759236780280,-500.0,0.0002085,2]
[388545067,1759236780289,-500.0,0.0002085,2]
[388545068,1759236780299,-500.0,0.0002085,2]
[388545069,1759236780308,-500.0,0.0002085,2]
[388545070,1759236780318,-500.0,0.0002085,2]
[388545071,1759236780327,-500.0,0.0002085,2]
[388545072,1759236780337,-500.0,0.0002085,2]
[388545073,1759236780347,-500.0,0.0002085,2]
[388545074,1759236780356,-500.0,0.0002085,2]
[388545075,1759236780366,-500.0,0.0002085,2]
[388545076,1759236780376,-500.0,0.0002085,2]
[388545077,1759236780386,-500.0,0.0002085,2]
[388545078,1759236780395,-500.0,0.0002085,2]
[388545079,1759236780406,-500.0,0.0002085,2]
[388545080,1759236780417,-500.0,0.0002085,2]
[388545081,1759236780426,-500.0,0.0002085,2]
[388545082,1759236780436,-500.0,0.0002085,2]
[388545083,1759236780447,-500.0,0.0002085,2]
[388545084,1759236780457,-500.0,0.0002085,2]
[388545085,1759236780466,-500.0,0.0002085,2]
[388545086,1759236780475,-500.0,0.0002085,2]
[388545087,1759236780484,-500.0,0.0002085,2]
[388545088,1759236780494,-500.0,0.0002085,2]
[388545089,1759236780504,-500.0,0.0002085,2]
[388545090,1759236780514,-500.0,0.0002085,2]
[388545091,1759236780524,-500.0,0.0002085,2]
[388545092,1759236780533,-500.0,0.0002085,2]
[388545093,1759236780542,-6324.2517459,0.0002086,2]
[388545094,1759236780551,-990.6598989,0.0002086,2]
[388545095,1759236780561,-19808.6634029,0.0002086,2]
[388545096,1759236780571,-5000.0,0.00020869,2]
[388545097,1759236780583,-400.0,0.0002087,2]
[388545098,1759236780592,-400.0,0.0002087,2]
[388545099,1759236780602,-700.0,0.0002087,2]
[388545100,1759236780612,-700.0,0.0002087,2]
[388545101,1759236780621,-124916.61356826,0.000209,30]
[388545102,1759236780632,-474.52590314,0.000209,30]
[388545103,1759236780641,-4832.25829,0.000209,30]
[388545104,1759236780651,-200.0,0.0002091,2]
[388545105,1759236780660,-207.36530526,0.00020979,20]
[388545106,1759236780670,-1000.0,0.00020986,2]
[388545107,1759236780681,-1800.0,0.00021,3]
[388545108,1759236780692,-150.0,0.00021,3]
[388545109,1759236780702,-3169.13723958,0.00021,2]
[388545110,1759236780714,-600194.60045015,0.00021,2]
[388545111,1759236780724,-4000.0,0.00021,4]
[388545112,1759236780734,-350.0,0.00021068,2]
[388545113,1759236780743,-1649.87,0.00021078,2]
[388545114,1759236780753,-8481.89979146,0.00021078,2]
[388545115,1759236780763,-500.0,0.0002109,2]
[388545116,1759236780773,-529.55,0.00021095,2]
[388545117,1759236780782,-1002.0,0.00021095,2]
[388545118,1759236780791,-802.64,0.00021095,2]
[388545119,1759236780801,-571.1,0.00021095,2]
[388545120,1759236780811,-547.3,0.00021095,2]
[388545121,1759236780820,-500.0,0.00021095,2]
[388545122,1759236780829,-500.0,0.00021095,2]
[388545123,1759236780838,-915.94,0.00021095,2]
[388545124,1759236780847,-500.0,0.00021095,2]
[388545125,1759236780856,-500.0,0.00021095,2]
[388545126,1759236780870,-500.0,0.00021095,2]
[388545127,1759236780879,-661.48,0.00021095,2]
[388545128,1759236780888,-633.92,0.00021095,2]
[388545129,1759236780897,-500.0,0.00021095,2]
[388545130,1759236780907,-916.09,0.00021095,2]
[388545131,1759236780916,-1022.35,0.00021095,2]
[388545132,1759236780925,-1020.5,0.00021095,2]
[388545133,1759236780935,-500.0,0.00021095,2]
[388545134,1759236780944,-500.0,0.00021095,2]
[388545135,1759236780953,-607.08,0.00021095,2]
[388545136,1759236780962,-500.0,0.00021095,2]
[388545137,1759236780971,-500.0,0.00021095,2]
[388545138,1759236780980,-500.0,0.00021095,2]
[388545139,1759236780990,-500.0,0.00021095,2]
[388545140,1759236780999,-500.0,0.00021095,2]
[388545141,1759236781008,-625.12,0.00021095,2]
[388545142,1759236781017,-500.0,0.00021095,2]
[388545143,1759236781027,-1964.83,0.00021095,2]
[388545144,1759236781037,-1015.48,0.00021095,2]
[388545145,1759236781047,-500.0,0.00021095,2]
[388545146,1759236781056,-500.0,0.00021095,2]
[388545147,1759236781066,-562.0,0.00021095,2]
[388545148,1759236781075,-500.0,0.00021095,2]
[388545149,1759236781085,-2282.05,0.00021095,2]
[388545150,1759236781094,-852.25,0.00021095,2]
[388545151,1759236781104,-2416.93,0.00021095,2]
[388545152,1759236781113,-646.78,0.00021095,2]
[388545153,1759236781123,-500.0,0.00021095,2]
[388545154,1759236781132,-626.86438539,0.00021095,2]
[388545155,1759236781142,-1431.48,0.00021095,2]
[388545156,1759236781153,-509.83,0.00021095,2]
[388545157,1759236781162,-768.16,0.00021095,2]
[388545158,1759236781171,-500.0,0.00021095,2]
[388545159,1759236781180,-500.0,0.00021095,2]
[388545160,1759236781190,-775.97,0.00021095,2]
[388545161,1759236781199,-500.0,0.00021095,2]
[388545162,1759236781210,-806.16,0.00021095,2]
[388545163,1759236781219,-1121.26,0.00021095,2]
[388545164,1759236781229,-789.94,0.00021095,2]
[388545165,1759236781239,-789.94,0.00021095,2]
[388545166,1759236781248,-1244.26,0.00021095,2]
[388545167,1759236781258,-616.9,0.00021095,2]
[388545168,1759236781267,-500.0,0.00021095,2]
[388545169,1759236781277,-500.0,0.00021095,2]
[388545170,1759236781287,-500.0,0.00021095,2]
[388545171,1759236781296,-528.24,0.00021095,2]
[388545172,1759236781306,-500.0,0.00021095,2]
[388545173,1759236781315,-2647.91,0.00021095,2]
[388545174,1759236781324,-500.0,0.00021095,2]
[388545175,1759236781334,-568.85,0.00021095,2]
[388545176,1759236781344,-500.0,0.00021095,2]
[388545177,1759236781353,-500.0,0.00021095,2]
[388545178,1759236781362,-956.14,0.00021095,2]
[388545179,1759236781371,-500.0,0.00021095,2]
[388545180,1759236781380,-535.24033767,0.00021095,2]
[388545181,1759236781391,-577.88,0.00021095,2]
[388545182,1759236781401,-2697.95,0.00021095,2]
[388545183,1759236781410,-1823.42,0.00021095,2]
[388545184,1759236781419,-500.0,0.00021095,2]
[388545185,1759236781429,-564.03718992,0.00021095,2]